[Event "Early-Titled-Tuesday-Blitz-March-19-2024"]
[Site "Chess.com"]
[Date "2024.03.19"]
[Round "2"]
[White "Kaissa10"]
[Black "xakevicius91"]
[Result "0-1"]
[WhiteElo "2305"]
[BlackElo "2540"]
[TimeControl "180+1"]
[EndTime "8:17:36 PDT"]
[Termination "xakevicius91 won by resignation"]

1. e4 {[%clk 0:03:00.9]} 1... c5 {[%clk 0:02:59.9]} 2. Nf3 {[%clk 0:02:57.4]}
2... e6 {[%clk 0:03:00.2]} 3. d4 {[%clk 0:02:55.4]} 3... cxd4 {[%clk 0:03:01.1]}
4. Nxd4 {[%clk 0:02:55.6]} 4... Qb6 {[%clk 0:03:00.9]} 5. Nb3 {[%clk 0:02:49.9]}
5... Nc6 {[%clk 0:02:58.4]} 6. Nc3 {[%clk 0:02:49.3]} 6... a6 {[%clk 0:02:58.4]}
7. Be3 {[%clk 0:02:48.4]} 7... Qc7 {[%clk 0:02:58.4]} 8. Be2 {[%clk 0:02:46.3]}
8... Nf6 {[%clk 0:02:58.3]} 9. O-O {[%clk 0:02:46.3]} 9... Be7 {[%clk
0:02:58.3]} 10. Qd2 {[%clk 0:02:31.4]} 10... d6 {[%clk 0:02:55.6]} 11. f4 {[%clk
0:02:04.7]} 11... O-O {[%clk 0:02:53.7]} 12. Nd4 {[%clk 0:02:04.8]} 12... Bd7
{[%clk 0:02:53.5]} 13. Rad1 {[%clk 0:01:57.8]} 13... Nxd4 {[%clk 0:02:52.2]} 14.
Bxd4 {[%clk 0:01:57.2]} 14... Bc6 {[%clk 0:02:52.8]} 15. Bd3 {[%clk 0:01:51]}
15... e5 {[%clk 0:02:52.6]} 16. fxe5 {[%clk 0:01:51.2]} 16... dxe5 {[%clk
0:02:52.6]} 17. Be3 {[%clk 0:01:48.3]} 17... Rad8 {[%clk 0:02:52.4]} 18. Qe2
{[%clk 0:01:45.3]} 18... b5 {[%clk 0:02:52.2]} 19. a3 {[%clk 0:01:45]} 19... Qb7
{[%clk 0:02:39.4]} 20. Bg5 {[%clk 0:01:38.2]} 20... Kh8 {[%clk 0:02:36.8]} 21.
Kh1 {[%clk 0:01:38.6]} 21... Ng8 {[%clk 0:02:24.4]} 22. Qh5 {[%clk 0:01:04.8]}
22... Bxg5 {[%clk 0:02:21]} 23. Qxg5 {[%clk 0:01:05.7]} 23... f6 {[%clk
0:02:20]} 24. Qh5 {[%clk 0:01:02.8]} 24... Ne7 {[%clk 0:02:03.2]} 25. Rf3 {[%clk
0:00:55.8]} 25... Be8 {[%clk 0:02:01.7]} 26. Qh4 {[%clk 0:00:48.7]} 26... Ng6
{[%clk 0:01:55.6]} 27. Qg4 {[%clk 0:00:14.9]} 27... Bd7 {[%clk 0:01:41.6]} 28.
Qh5 {[%clk 0:00:13.9]} 28... Nf4 {[%clk 0:01:40.4]} 29. Qh4 {[%clk 0:00:14.4]}
29... Be6 {[%clk 0:01:35.9]} 30. Rdf1 {[%clk 0:00:10.9]} 30... g5 {[%clk
0:01:28.5]} 31. Qh6 {[%clk 0:00:10.3]} 31... Qg7 {[%clk 0:01:23.3]} 32. Qxg7+
{[%clk 0:00:10.6]} 32... Kxg7 {[%clk 0:01:24.2]} 33. g3 {[%clk 0:00:09.2]} 33...
Ng6 {[%clk 0:01:17.3]} 34. Na2 {[%clk 0:00:05]} 34... h5 {[%clk 0:01:15.5]} 35.
Nb4 {[%clk 0:00:04.9]} 35... Rd6 {[%clk 0:01:11.7]} 36. Kg2 {[%clk 0:00:05.1]}
36... h4 {[%clk 0:01:11.7]} 37. b3 {[%clk 0:00:02.8]} 37... Bg4 {[%clk
0:01:06.1]} 38. R3f2 {[%clk 0:00:02.8]} 38... Rh8 {[%clk 0:01:05.3]} 39. Na2
{[%clk 0:00:02.7]} 39... hxg3 {[%clk 0:01:05.2]} 40. hxg3 {[%clk 0:00:03.6]}
40... Bh3+ {[%clk 0:01:05.7]} 41. Kg1 {[%clk 0:00:03.5]} 41... Bxf1 {[%clk
0:01:06.6]} 42. Rxf1 {[%clk 0:00:04.4]} 42... Ne7 {[%clk 0:01:05.3]} 43. Nc3
{[%clk 0:00:04.9]} 43... Rc8 {[%clk 0:01:05]} 44. a4 {[%clk 0:00:05.6]} 44...
Rxc3 {[%clk 0:01:02]} 45. axb5 {[%clk 0:00:06]} 45... axb5 {[%clk 0:01:02.2]}
0-1

[Event "Early-Titled-Tuesday-Blitz-March-19-2024"]
[Site "Chess.com"]
[Date "2024.03.19"]
[Round "2"]
[White "MatyChess1"]
[Black "Bauman_Guy"]
[Result "1-0"]
[WhiteElo "2657"]
[BlackElo "2920"]
[TimeControl "180+1"]
[EndTime "8:17:37 PDT"]
[Termination "MatyChess1 won on time"]

1. d4 {[%clk 0:03:00.9]} 1... Nf6 {[%clk 0:02:59.9]} 2. Bf4 {[%clk 0:03:00.8]}
2... b6 {[%clk 0:02:59.7]} 3. c4 {[%clk 0:02:57.7]} 3... Bb7 {[%clk 0:03:00]} 4.
e3 {[%clk 0:02:57.9]} 4... g6 {[%clk 0:03:00.4]} 5. Nc3 {[%clk 0:02:57.4]} 5...
Bg7 {[%clk 0:03:00.8]} 6. h3 {[%clk 0:02:57.8]} 6... d6 {[%clk 0:03:01.1]} 7.
Nf3 {[%clk 0:02:58]} 7... O-O {[%clk 0:03:01.2]} 8. Be2 {[%clk 0:02:58.2]} 8...
Nc6 {[%clk 0:03:01.9]} 9. O-O {[%clk 0:02:58.3]} 9... Nd7 {[%clk 0:03:02.6]} 10.
Bh2 {[%clk 0:02:58.6]} 10... e5 {[%clk 0:03:02.7]} 11. d5 {[%clk 0:02:45.2]}
11... Ne7 {[%clk 0:03:01.6]} 12. b4 {[%clk 0:02:44.4]} 12... a5 {[%clk
0:03:01.4]} 13. a3 {[%clk 0:02:44.4]} 13... h6 {[%clk 0:03:00.5]} 14. Nd2 {[%clk
0:02:30.7]} 14... f5 {[%clk 0:02:59.8]} 15. Qb3 {[%clk 0:02:22.6]} 15... e4
{[%clk 0:02:32.5]} 16. Rac1 {[%clk 0:02:19.2]} 16... Bc8 {[%clk 0:02:26.6]} 17.
Nb5 {[%clk 0:02:17.5]} 17... Ba6 {[%clk 0:02:22.3]} 18. c5 {[%clk 0:02:11.5]}
18... a4 {[%clk 0:02:03.4]} 19. Qa2 {[%clk 0:02:07.6]} 19... bxc5 {[%clk
0:02:02.3]} 20. bxc5 {[%clk 0:02:07.6]} 20... Ne5 {[%clk 0:01:59.2]} 21. Rfd1
{[%clk 0:01:53.1]} 21... Kh7 {[%clk 0:01:55.5]} 22. Nb1 {[%clk 0:01:10.5]} 22...
Rb8 {[%clk 0:01:47.1]} 23. N1c3 {[%clk 0:01:10.6]} 23... dxc5 {[%clk 0:01:18.8]}
24. d6 {[%clk 0:01:07.7]} 24... cxd6 {[%clk 0:01:10.3]} 25. Rxd6 {[%clk
0:01:08.6]} 25... Qa5 {[%clk 0:01:10.3]} 26. Qe6 {[%clk 0:01:00]} 26... Bxb5
{[%clk 0:01:01.5]} 27. Qxe7 {[%clk 0:00:55.9]} 27... Rfe8 {[%clk 0:00:35.3]} 28.
Qh4 {[%clk 0:00:31.8]} 28... Bxe2 {[%clk 0:00:03.9]} 29. Nxe2 {[%clk 0:00:32.7]}
29... Rb2 {[%clk 0:00:03.6]} 30. Bxe5 {[%clk 0:00:31.7]} 30... Rxe5 {[%clk
0:00:02.6]} 31. Rd7 {[%clk 0:00:32]} 1-0

[Event "Early-Titled-Tuesday-Blitz-March-19-2024"]
[Site "Chess.com"]
[Date "2024.03.19"]
[Round "2"]
[White "SmirnovAlexandrA"]
[Black "SchmakAttack"]
[Result "1-0"]
[WhiteElo "2611"]
[BlackElo "2827"]
[TimeControl "180+1"]
[EndTime "8:17:37 PDT"]
[Termination "SmirnovAlexandrA won by resignation"]

1. e4 {[%clk 0:03:00.9]} 1... c5 {[%clk 0:02:59.4]} 2. Nf3 {[%clk 0:03:00.8]}
2... d6 {[%clk 0:02:58.9]} 3. Bc4 {[%clk 0:03:00.6]} 3... Nf6 {[%clk 0:02:56.5]}
4. e5 {[%clk 0:03:00.8]} 4... dxe5 {[%clk 0:02:56.8]} 5. Nxe5 {[%clk 0:03:01.7]}
5... e6 {[%clk 0:02:57.5]} 6. Qe2 {[%clk 0:03:01.6]} 6... Be7 {[%clk 0:02:51.6]}
7. b3 {[%clk 0:03:00.8]} 7... O-O {[%clk 0:02:47.7]} 8. Bb2 {[%clk 0:03:00.8]}
8... Qc7 {[%clk 0:02:34.7]} 9. O-O {[%clk 0:03:00]} 9... Nc6 {[%clk 0:02:35.1]}
10. f4 {[%clk 0:02:59.3]} 10... a6 {[%clk 0:02:28]} 11. a4 {[%clk 0:02:58.5]}
11... Nd4 {[%clk 0:02:12.5]} 12. Qd1 {[%clk 0:02:55.7]} 12... b6 {[%clk
0:01:59]} 13. Na3 {[%clk 0:02:55.6]} 13... Bb7 {[%clk 0:01:58.2]} 14. Bd3 {[%clk
0:02:55.7]} 14... Rad8 {[%clk 0:01:46.1]} 15. Qe1 {[%clk 0:02:47.4]} 15... Nd5
{[%clk 0:01:34.8]} 16. Be4 {[%clk 0:02:33.4]} 16... Nf6 {[%clk 0:01:09.2]} 17.
Bd3 {[%clk 0:02:30.3]} 17... Nd5 {[%clk 0:01:04.2]} 18. Be4 {[%clk 0:02:07.5]}
18... b5 {[%clk 0:00:49.2]} 19. axb5 {[%clk 0:02:03.9]} 19... axb5 {[%clk
0:00:50.1]} 20. c4 {[%clk 0:02:04.6]} 20... bxc4 {[%clk 0:00:44.6]} 21. bxc4
{[%clk 0:02:01.2]} 21... Nb4 {[%clk 0:00:44.4]} 22. Nb5 {[%clk 0:01:51.2]} 22...
Nxb5 {[%clk 0:00:43]} 23. cxb5 {[%clk 0:01:51.4]} 23... Bxe4 {[%clk 0:00:41.8]}
24. Qxe4 {[%clk 0:01:51.7]} 24... Rxd2 {[%clk 0:00:42.4]} 25. Bc3 {[%clk
0:01:48]} 25... Rd5 {[%clk 0:00:42.4]} 26. f5 {[%clk 0:01:39.7]} 26... exf5
{[%clk 0:00:38.8]} 27. Rxf5 {[%clk 0:01:40.6]} 27... Bf6 {[%clk 0:00:35.8]} 28.
Raf1 {[%clk 0:01:36.9]} 28... Bxe5 {[%clk 0:00:20.5]} 29. Rxe5 {[%clk
0:01:37.8]} 29... Rxe5 {[%clk 0:00:12.9]} 30. Bxe5 {[%clk 0:01:38.7]} 30... Qd7
{[%clk 0:00:13.4]} 31. Qc4 {[%clk 0:01:34.2]} 31... Nd3 {[%clk 0:00:11.2]} 32.
Bg3 {[%clk 0:01:31.4]} 32... Nb2 {[%clk 0:00:05.2]} 33. Qxc5 {[%clk 0:01:21.9]}
33... Na4 {[%clk 0:00:05.7]} 34. Qb4 {[%clk 0:01:19.4]} 34... Nb6 {[%clk
0:00:05.3]} 35. Qc5 {[%clk 0:01:19.2]} 35... Na4 {[%clk 0:00:04]} 36. Qc6 {[%clk
0:01:17]} 36... Qd4+ {[%clk 0:00:04.2]} 37. Kh1 {[%clk 0:01:09.9]} 37... Qd3
{[%clk 0:00:05.1]} 38. Rc1 {[%clk 0:01:07.1]} 38... h5 {[%clk 0:00:03.6]} 39. b6
{[%clk 0:01:03]} 39... Qb3 {[%clk 0:00:02.8]} 40. b7 {[%clk 0:00:59.8]} 40...
Qb4 {[%clk 0:00:02]} 41. Bd6 {[%clk 0:00:55.7]} 41... Qb2 {[%clk 0:00:01.5]} 42.
Bxf8 {[%clk 0:00:55.4]} 1-0

[Event "Early-Titled-Tuesday-Blitz-March-19-2024"]
[Site "Chess.com"]
[Date "2024.03.19"]
[Round "2"]
[White "ArchibaldCerveza29"]
[Black "scarabee43"]
[Result "0-1"]
[WhiteElo "2428"]
[BlackElo "2815"]
[TimeControl "180+1"]
[EndTime "8:17:39 PDT"]
[Termination "scarabee43 won by resignation"]

1. e4 {[%clk 0:02:56.2]} 1... c5 {[%clk 0:02:59.7]} 2. Nf3 {[%clk 0:02:56]} 2...
e6 {[%clk 0:03:00.3]} 3. d4 {[%clk 0:02:55.9]} 3... cxd4 {[%clk 0:03:01.1]} 4.
Nxd4 {[%clk 0:02:56.6]} 4... Nc6 {[%clk 0:03:00.4]} 5. Nc3 {[%clk 0:02:56.2]}
5... Qc7 {[%clk 0:03:00.6]} 6. g3 {[%clk 0:02:55.8]} 6... a6 {[%clk 0:03:00.5]}
7. Bg2 {[%clk 0:02:56.2]} 7... Nf6 {[%clk 0:02:59.7]} 8. O-O {[%clk 0:02:56.3]}
8... Nxd4 {[%clk 0:03:00]} 9. Qxd4 {[%clk 0:02:56.2]} 9... Bc5 {[%clk
0:03:00.7]} 10. Qd3 {[%clk 0:02:56.7]} 10... h6 {[%clk 0:02:56.4]} 11. a4 {[%clk
0:02:56.3]} 11... O-O {[%clk 0:02:50.3]} 12. h3 {[%clk 0:02:40.2]} 12... d6
{[%clk 0:02:37.7]} 13. Kh1 {[%clk 0:02:33.2]} 13... Bd7 {[%clk 0:02:24.5]} 14.
f4 {[%clk 0:02:32.1]} 14... Bc6 {[%clk 0:02:24.2]} 15. Be3 {[%clk 0:02:26.6]}
15... Bxe3 {[%clk 0:02:21.2]} 16. Qxe3 {[%clk 0:02:27.5]} 16... Rac8 {[%clk
0:02:08.4]} 17. Rfd1 {[%clk 0:02:02.2]} 17... Rfd8 {[%clk 0:02:08.3]} 18. a5
{[%clk 0:01:50.7]} 18... Nd7 {[%clk 0:01:41.8]} 19. Ra3 {[%clk 0:01:35.6]} 19...
Nc5 {[%clk 0:01:11.6]} 20. Qd4 {[%clk 0:01:23.1]} 20... Qe7 {[%clk 0:01:09.3]}
21. b4 {[%clk 0:01:18.7]} 21... e5 {[%clk 0:00:40.3]} 22. fxe5 {[%clk
0:00:52.5]} 22... Ne6 {[%clk 0:00:39.6]} 23. exd6 {[%clk 0:00:48.4]} 23... Qg5
{[%clk 0:00:40.2]} 24. Qd3 {[%clk 0:00:45.4]} 24... Qe5 {[%clk 0:00:40.3]} 25.
Ra2 {[%clk 0:00:18.8]} 25... Rd7 {[%clk 0:00:37.5]} 26. Nd5 {[%clk 0:00:19.2]}
26... Bb5 {[%clk 0:00:36]} 27. Qd2 {[%clk 0:00:14.9]} 27... Rcd8 {[%clk
0:00:34.6]} 28. Rc1 {[%clk 0:00:10.4]} 28... Rxd6 {[%clk 0:00:34.5]} 29. c4
{[%clk 0:00:11.1]} 29... Bc6 {[%clk 0:00:32.2]} 30. Qe3 {[%clk 0:00:11.2]} 30...
Bxd5 {[%clk 0:00:31.6]} 31. cxd5 {[%clk 0:00:11.5]} 31... Rxd5 {[%clk
0:00:32.3]} 32. Re2 {[%clk 0:00:09.3]} 32... Rd3 {[%clk 0:00:32.2]} 33. Qb6
{[%clk 0:00:09.5]} 33... Qxg3 {[%clk 0:00:31.8]} 34. Qxb7 {[%clk 0:00:08.5]}
34... Rd1+ {[%clk 0:00:31.7]} 0-1

[Event "Early-Titled-Tuesday-Blitz-March-19-2024"]
[Site "Chess.com"]
[Date "2024.03.19"]
[Round "2"]
[White "MyDream003"]
[Black "picturesquecheck"]
[Result "1/2-1/2"]
[WhiteElo "2786"]
[BlackElo "2435"]
[TimeControl "180+1"]
[EndTime "8:17:39 PDT"]
[Termination "Game drawn by agreement"]

1. Nf3 {[%clk 0:03:00.9]} 1... c6 {[%clk 0:02:55.3]} 2. c4 {[%clk 0:02:59.7]}
2... d5 {[%clk 0:02:55.2]} 3. e3 {[%clk 0:02:59.4]} 3... Nf6 {[%clk 0:02:55.2]}
4. b3 {[%clk 0:02:59.5]} 4... g6 {[%clk 0:02:53.8]} 5. Bb2 {[%clk 0:02:59.7]}
5... Bg7 {[%clk 0:02:54.4]} 6. Be2 {[%clk 0:02:59.4]} 6... O-O {[%clk
0:02:54.7]} 7. O-O {[%clk 0:02:59.6]} 7... Bg4 {[%clk 0:02:53.4]} 8. d4 {[%clk
0:02:58.5]} 8... e6 {[%clk 0:02:53.3]} 9. Nc3 {[%clk 0:02:57.1]} 9... Nbd7
{[%clk 0:02:53.4]} 10. Rc1 {[%clk 0:02:56.9]} 10... Rc8 {[%clk 0:02:53.2]} 11.
h3 {[%clk 0:02:56.7]} 11... Bxf3 {[%clk 0:02:53]} 12. Bxf3 {[%clk 0:02:57.6]}
12... Re8 {[%clk 0:02:53.4]} 13. Qc2 {[%clk 0:02:49.1]} 13... dxc4 {[%clk
0:02:52.2]} 14. bxc4 {[%clk 0:02:50]} 14... e5 {[%clk 0:02:52.9]} 15. Rfd1
{[%clk 0:02:47.6]} 15... exd4 {[%clk 0:02:50.6]} 16. exd4 {[%clk 0:02:48.5]}
16... Qa5 {[%clk 0:02:49.8]} 17. Qb3 {[%clk 0:02:45.2]} 17... Qb6 {[%clk
0:02:46.1]} 18. c5 {[%clk 0:02:43]} 18... Qxb3 {[%clk 0:02:45.1]} 19. axb3
{[%clk 0:02:43.9]} 19... Nb8 {[%clk 0:02:43.8]} 20. b4 {[%clk 0:02:40.6]} 20...
Na6 {[%clk 0:02:40.7]} 21. b5 {[%clk 0:02:37.2]} 21... Nb4 {[%clk 0:02:36]} 22.
Ra1 {[%clk 0:02:14.9]} 22... a6 {[%clk 0:02:25.4]} 23. Ra4 {[%clk 0:02:01.1]}
23... Nbd5 {[%clk 0:02:16.4]} 24. bxa6 {[%clk 0:01:54]} 24... bxa6 {[%clk
0:02:12.9]} 25. Rxa6 {[%clk 0:01:54.9]} 25... Red8 {[%clk 0:01:59.9]} 26. Na4
{[%clk 0:01:28.4]} 26... Nb4 {[%clk 0:01:49.4]} 27. Rb6 {[%clk 0:01:27.2]} 27...
Nfd5 {[%clk 0:01:48.2]} 28. Rb7 {[%clk 0:01:27.2]} 28... Rb8 {[%clk 0:01:34.5]}
29. Rxb8 {[%clk 0:01:20.8]} 29... Rxb8 {[%clk 0:01:35.4]} 30. Ba1 {[%clk
0:01:14.9]} 30... Nc2 {[%clk 0:01:31]} 31. Bxd5 {[%clk 0:01:12.4]} 31... cxd5
{[%clk 0:01:30]} 32. Nb6 {[%clk 0:01:12.8]} 32... Nxa1 {[%clk 0:01:26.7]} 33.
Rxa1 {[%clk 0:00:56.2]} 33... Bxd4 {[%clk 0:01:25.8]} 34. Rc1 {[%clk 0:00:56.9]}
34... Bxc5 {[%clk 0:01:20.3]} 35. Nxd5 {[%clk 0:00:46.6]} 35... Bd4 {[%clk
0:01:15.8]} 36. Rd1 {[%clk 0:00:45.8]} 36... Bg7 {[%clk 0:01:14.1]} 37. Ne7+
{[%clk 0:00:43.2]} 37... Kf8 {[%clk 0:01:11.5]} 38. Nc6 {[%clk 0:00:44.1]} 38...
Re8 {[%clk 0:01:10.4]} 39. g3 {[%clk 0:00:43.9]} 39... h5 {[%clk 0:01:10.2]} 40.
Kg2 {[%clk 0:00:44]} 40... Bf6 {[%clk 0:01:07.6]} 41. Rd3 {[%clk 0:00:44.2]}
41... Kg7 {[%clk 0:01:07.8]} 42. Rd7 {[%clk 0:00:43.9]} 42... Re6 {[%clk
0:01:05.4]} 43. Nb4 {[%clk 0:00:43.6]} 43... Re7 {[%clk 0:01:03.2]} 44. Rd3
{[%clk 0:00:42.6]} 44... Rb7 {[%clk 0:00:59.7]} 45. Nd5 {[%clk 0:00:42.6]} 45...
Rb2 {[%clk 0:00:58.5]} 46. Kf3 {[%clk 0:00:39.7]} 46... Bd8 {[%clk 0:00:56.4]}
47. g4 {[%clk 0:00:35.9]} 47... hxg4+ {[%clk 0:00:55.9]} 48. hxg4 {[%clk
0:00:35.8]} 48... Bb6 {[%clk 0:00:56.5]} 49. Ne3 {[%clk 0:00:30]} 49... Bxe3
{[%clk 0:00:53.7]} 1/2-1/2

[Event "Early-Titled-Tuesday-Blitz-March-19-2024"]
[Site "Chess.com"]
[Date "2024.03.19"]
[Round "2"]
[White "AlanZhang"]
[Black "MaxLeto"]
[Result "0-1"]
[WhiteElo "2235"]
[BlackElo "2514"]
[TimeControl "180+1"]
[EndTime "8:17:40 PDT"]
[Termination "MaxLeto won on time"]

1. e4 {[%clk 0:02:56.8]} 1... c5 {[%clk 0:02:56]} 2. Nf3 {[%clk 0:02:53.1]} 2...
d6 {[%clk 0:02:56.5]} 3. d4 {[%clk 0:02:46.7]} 3... cxd4 {[%clk 0:02:57.4]} 4.
Nxd4 {[%clk 0:02:46.9]} 4... Nf6 {[%clk 0:02:58]} 5. Nc3 {[%clk 0:02:47.3]} 5...
a6 {[%clk 0:02:58.9]} 6. h3 {[%clk 0:02:46.2]} 6... e6 {[%clk 0:02:58.8]} 7. g4
{[%clk 0:02:44.5]} 7... Qc7 {[%clk 0:02:59.4]} 8. Be3 {[%clk 0:02:43.7]} 8...
Nfd7 {[%clk 0:03:00.3]} 9. Qe2 {[%clk 0:02:44]} 9... b5 {[%clk 0:03:00.8]} 10.
Bg2 {[%clk 0:02:40.5]} 10... Bb7 {[%clk 0:03:01.3]} 11. a3 {[%clk 0:02:39]}
11... Ne5 {[%clk 0:02:59.2]} 12. O-O {[%clk 0:02:18.7]} 12... Nc4 {[%clk
0:02:45.9]} 13. Bc1 {[%clk 0:02:15.8]} 13... Nd7 {[%clk 0:02:46.3]} 14. Rd1
{[%clk 0:02:06.2]} 14... Be7 {[%clk 0:02:45.7]} 15. f4 {[%clk 0:01:20.7]} 15...
O-O {[%clk 0:02:40.2]} 16. Qd3 {[%clk 0:01:19.9]} 16... Rac8 {[%clk 0:02:23.3]}
17. f5 {[%clk 0:01:12.4]} 17... Nc5 {[%clk 0:01:40.8]} 18. Qg3 {[%clk
0:01:08.4]} 18... Bf6 {[%clk 0:01:39.3]} 19. b3 {[%clk 0:00:59.8]} 19... Be5
{[%clk 0:01:30.4]} 20. Qf2 {[%clk 0:00:46.2]} 20... Nb6 {[%clk 0:01:18.8]} 21.
Bb2 {[%clk 0:00:38]} 21... Rfe8 {[%clk 0:01:15.5]} 22. Re1 {[%clk 0:00:32.2]}
22... Nbd7 {[%clk 0:01:02.1]} 23. Rad1 {[%clk 0:00:22.3]} 23... h6 {[%clk
0:00:57.9]} 24. Re3 {[%clk 0:00:06.9]} 24... Nf6 {[%clk 0:00:57.4]} 25. Nce2
{[%clk 0:00:05.8]} 25... Ncxe4 {[%clk 0:00:55.3]} 26. Bxe4 {[%clk 0:00:05.2]}
26... Nxe4 {[%clk 0:00:56.2]} 27. Qh4 {[%clk 0:00:05.3]} 27... Bf6 {[%clk
0:00:54.5]} 28. Qe1 {[%clk 0:00:04.6]} 28... Bg5 {[%clk 0:00:52.4]} 29. Red3
{[%clk 0:00:03.3]} 29... d5 {[%clk 0:00:46.9]} 30. fxe6 {[%clk 0:00:02.2]} 30...
fxe6 {[%clk 0:00:47.8]} 31. Nf3 {[%clk 0:00:02.5]} 31... e5 {[%clk 0:00:47.7]}
32. Nxg5 {[%clk 0:00:02.5]} 32... Nxg5 {[%clk 0:00:47.9]} 33. Ng3 {[%clk
0:00:02.9]} 33... e4 {[%clk 0:00:46.9]} 34. Re3 {[%clk 0:00:02.6]} 34... Nf3+
{[%clk 0:00:47.3]} 35. Rxf3 {[%clk 0:00:02.9]} 35... exf3 {[%clk 0:00:47.6]} 36.
Qf2 {[%clk 0:00:03.3]} 36... d4 {[%clk 0:00:44.3]} 37. Nf5 {[%clk 0:00:01.1]}
37... Re2 {[%clk 0:00:41.8]} 0-1

[Event "Early-Titled-Tuesday-Blitz-March-19-2024"]
[Site "Chess.com"]
[Date "2024.03.19"]
[Round "2"]
[White "ChainedDowntohell"]
[Black "javierfreilemartin"]
[Result "1-0"]
[WhiteElo "2539"]
[BlackElo "2303"]
[TimeControl "180+1"]
[EndTime "8:17:42 PDT"]
[Termination "ChainedDowntohell won by resignation"]

1. e4 {[%clk 0:03:00.9]} 1... c5 {[%clk 0:02:58.8]} 2. Nf3 {[%clk 0:03:00.8]}
2... e6 {[%clk 0:02:58.9]} 3. d4 {[%clk 0:03:00.2]} 3... cxd4 {[%clk 0:02:59]}
4. Nxd4 {[%clk 0:03:00]} 4... a6 {[%clk 0:02:59.5]} 5. c4 {[%clk 0:02:53.6]}
5... h6 {[%clk 0:02:59.2]} 6. a3 {[%clk 0:02:51.5]} 6... d6 {[%clk 0:02:58.8]}
7. Nc3 {[%clk 0:02:51]} 7... Nf6 {[%clk 0:02:58.9]} 8. Be3 {[%clk 0:02:50.1]}
8... b6 {[%clk 0:02:59]} 9. Be2 {[%clk 0:02:47.8]} 9... Bb7 {[%clk 0:02:59]} 10.
f3 {[%clk 0:02:44.9]} 10... Nbd7 {[%clk 0:02:55.8]} 11. Qd2 {[%clk 0:02:43.3]}
11... g5 {[%clk 0:02:52.8]} 12. g4 {[%clk 0:02:34.4]} 12... Rc8 {[%clk
0:02:47.1]} 13. h4 {[%clk 0:02:31.1]} 13... gxh4 {[%clk 0:02:38]} 14. O-O-O
{[%clk 0:02:29.5]} 14... Nc5 {[%clk 0:02:22.2]} 15. Kb1 {[%clk 0:02:27.5]} 15...
a5 {[%clk 0:01:49.9]} 16. Ndb5 {[%clk 0:02:12.1]} 16... d5 {[%clk 0:01:34.6]}
17. cxd5 {[%clk 0:01:55.1]} 17... exd5 {[%clk 0:01:33.7]} 18. e5 {[%clk
0:01:54.2]} 18... Nfd7 {[%clk 0:01:31.1]} 19. Nxd5 {[%clk 0:01:44.9]} 19... Ne6
{[%clk 0:01:00.3]} 20. f4 {[%clk 0:00:26.9]} 20... Bc5 {[%clk 0:00:44.4]} 21.
Bxc5 {[%clk 0:00:19.1]} 21... Rxc5 {[%clk 0:00:39.5]} 22. Nd6+ {[%clk
0:00:18.9]} 22... Kf8 {[%clk 0:00:31.2]} 23. Nxb7 {[%clk 0:00:19.3]} 23... Qa8
{[%clk 0:00:26.5]} 24. Nxc5 {[%clk 0:00:15.7]} 24... Ndxc5 {[%clk 0:00:25.1]}
25. f5 {[%clk 0:00:16]} 25... Ng5 {[%clk 0:00:22.8]} 26. Rxh4 {[%clk 0:00:14.5]}
26... Kg7 {[%clk 0:00:16]} 27. f6+ {[%clk 0:00:13.3]} 27... Kf8 {[%clk
0:00:13.8]} 28. Qxg5 {[%clk 0:00:12.4]} 1-0

[Event "Early-Titled-Tuesday-Blitz-March-19-2024"]
[Site "Chess.com"]
[Date "2024.03.19"]
[Round "2"]
[White "FaustinoOro"]
[Black "AccioChess"]
[Result "1-0"]
[WhiteElo "2904"]
[BlackElo "2438"]
[TimeControl "180+1"]
[EndTime "8:17:45 PDT"]
[Termination "FaustinoOro won on time"]

1. e4 {[%clk 0:03:00.9]} 1... c5 {[%clk 0:02:57.2]} 2. Nf3 {[%clk 0:03:01]} 2...
Nc6 {[%clk 0:02:57.3]} 3. Bb5 {[%clk 0:02:59.9]} 3... g6 {[%clk 0:02:56.8]} 4.
O-O {[%clk 0:02:58.6]} 4... Bg7 {[%clk 0:02:57]} 5. Bxc6 {[%clk 0:02:58.6]} 5...
dxc6 {[%clk 0:02:56.3]} 6. d3 {[%clk 0:02:58.4]} 6... Nf6 {[%clk 0:02:55.8]} 7.
Nbd2 {[%clk 0:02:56.6]} 7... O-O {[%clk 0:02:55.7]} 8. h3 {[%clk 0:02:56.9]}
8... Ne8 {[%clk 0:02:51.9]} 9. a4 {[%clk 0:02:53]} 9... b6 {[%clk 0:02:48.2]}
10. Re1 {[%clk 0:02:51.6]} 10... Nc7 {[%clk 0:02:47.1]} 11. Nc4 {[%clk
0:02:49.8]} 11... Ba6 {[%clk 0:02:32.2]} 12. Ne3 {[%clk 0:02:15.4]} 12... f5
{[%clk 0:02:21.6]} 13. exf5 {[%clk 0:02:08.2]} 13... gxf5 {[%clk 0:02:21.7]} 14.
Nf1 {[%clk 0:02:02.4]} 14... f4 {[%clk 0:02:12.4]} 15. N1d2 {[%clk 0:01:50.6]}
15... Qd7 {[%clk 0:01:56.8]} 16. Rb1 {[%clk 0:01:42.5]} 16... Rf5 {[%clk
0:01:40.9]} 17. b3 {[%clk 0:01:38.7]} 17... Nd5 {[%clk 0:01:10.2]} 18. Ne4
{[%clk 0:01:31.3]} 18... Nc3 {[%clk 0:01:01.2]} 19. Nxc3 {[%clk 0:01:30.7]}
19... Bxc3 {[%clk 0:01:02.1]} 20. Re4 {[%clk 0:01:27.6]} 20... Raf8 {[%clk
0:01:01.4]} 21. Bb2 {[%clk 0:01:24.1]} 21... Bxb2 {[%clk 0:00:58.7]} 22. Rxb2
{[%clk 0:01:25]} 22... c4 {[%clk 0:00:44.6]} 23. bxc4 {[%clk 0:01:21.3]} 23...
c5 {[%clk 0:00:44.6]} 24. Rb1 {[%clk 0:01:04.6]} 24... Bb7 {[%clk 0:00:43.2]}
25. Re1 {[%clk 0:01:05.1]} 25... R5f6 {[%clk 0:00:38.2]} 26. Ne5 {[%clk
0:00:50.2]} 26... Qf5 {[%clk 0:00:25.6]} 27. f3 {[%clk 0:00:37.2]} 27... h5
{[%clk 0:00:20.8]} 28. Qe2 {[%clk 0:00:31.7]} 28... Re6 {[%clk 0:00:20.1]} 29.
c3 {[%clk 0:00:29.9]} 29... Rd8 {[%clk 0:00:19.1]} 30. Rbd1 {[%clk 0:00:28.2]}
30... Kg7 {[%clk 0:00:19.1]} 31. d4 {[%clk 0:00:28.2]} 31... cxd4 {[%clk
0:00:19]} 32. cxd4 {[%clk 0:00:29.1]} 32... Bc6 {[%clk 0:00:16]} 33. d5 {[%clk
0:00:26.7]} 33... Bxa4 {[%clk 0:00:16]} 34. Ra1 {[%clk 0:00:23.9]} 1-0